Cogmind - Beta 13 @@@ ROGUE MODE // 2024.06.19 @ 09:28:06 Player: emory Result: Destroyed by H-61 Shepherd with Heavy Assault Cannon Performance ------------- Evolutions (3) 1500 Regions Visited (6) 1200 Robots Destroyed (32) 160 Value Destroyed (880) 880 Prototype IDs (1) 20 Alien Tech Used (0) 0 Bonus (0) 0 TOTAL SCORE: 3760 Bonus ------- None Cogmind --------- Core Integrity 0/700 Matter 30/300 Energy 99/100 System Corruption 18% Temperature Cool (18) Movement Core (50) Location -7/Factory Parts ------- > --- POWER (1) -------- (None) > --- PROPULSION (5) --- (None) > --- UTILITY (4) ------ Targeting Computer Targeting Computer Targeting Computer > --- WEAPON (3) ------- (None) > --- INVENTORY (5) ---- Nuclear Core Wheel Improved EM Shotgun High-powered Shotgun Flak Cannon Peak State ------------ > --- POWER ------------ (None) > --- PROPULSION ------- Flight Unit Flight Unit Improved Flight Unit Improved Flight Unit > --- UTILITY ---------- Signal Interpreter Targeting Computer Layered Heavy Armor Plating > --- WEAPON ----------- Particle Gun Heavy Laser Minigun > --- INVENTORY -------- Nuclear Core High-powered Shotgun Rocket Launcher [Rating: 31] Favorites ----------- Power Ion Engine Engine Ion Engine Power Core Light Nuclear Core Propulsion Aluminum Leg Treads Light Treads Leg Aluminum Leg Hover Unit Gravmag System Flight Unit Improved Flight Unit Utility Signal Interpreter Device Structural Scanner Storage Huge Storage Unit Processor Signal Interpreter Protection Improved Light Armor Plating Weapon Light Assault Rifle Energy Gun Particle Gun Ballistic Gun Light Assault Rifle Ballistic Cannon Flak Cannon Launcher Rocket Launcher Build | -11 -10 -10 -8 -7 -7 -7 ------- Run | Yrd Mat Sub Mat Fac Was Fac Slots Evolved 6 | . . . 4 2 . . Power . | . . . . . . . Propulsion 3 | . . . 2 1 . . Utility 2 | . . . 2 . . . Weapon 1 | . . . . 1 . . Parts Attached 53 | 6 10 . 17 3 4 13 Power 6 | 1 1 . 2 . 1 1 Engine 5 | 1 1 . 1 . 1 1 Core 1 | . . . 1 . . . Reactor . | . . . . . . . Propulsion 18 | 2 3 . 8 2 . 3 Treads 2 | 2 . . . . . . Leg 4 | . 3 . . . . 1 Wheel . | . . . . . . . Hover 2 | . . . . . . 2 Flight 10 | . . . 8 2 . . Utility 17 | 1 4 . 4 . 3 5 Device 4 | . . . 1 . 2 1 Storage 5 | 1 3 . 1 . . . Processor 5 | . 1 . 1 . . 3 Hackware . | . . . . . . . Protection 3 | . . . 1 . 1 1 Artifact . | . . . . . . . Weapon 12 | 2 2 . 3 1 . 4 Energy Gun 2 | . . . 1 1 . . Energy Cannon . | . . . . . . . Ballistic Gun 7 | 2 2 . 2 . . 1 Ballistic Cannon 2 | . . . . . . 2 Launcher 1 | . . . . . . 1 Special Weapon . | . . . . . . . Impact Weapon . | . . . . . . . Slashing Weapon . | . . . . . . . Piercing Weapon . | . . . . . . . Special Melee Weapon . | . . . . . . . Unidentified Prototypes 1 | . . . 1 . . . Parts Lost 25 | . 5 . 7 . 5 8 Power 4 | . 1 . 2 . . 1 Propulsion 10 | . 3 . 2 . 2 3 Utility 6 | . . . 1 . 2 3 Weapon 5 | . 1 . 2 . 1 1 Highest Loss Streak 6 | . 3 . 4 . 3 6 To Critical Strikes . | . . . . . . . Average Slot Usage (%) 83 | . 95 100 90 75 53 48 Engine 10 | . 14 14 4 . . 6 Treads 4 | . 7 . . . . . Leg 14 | . 20 28 . . . 6 Hover 1 | . . . . . . 8 Flight 4 | . . . 34 30 19 . Device 1 | . . . 7 7 1 2 Storage 9 | . 14 14 1 . . . Processor 13 | . 12 14 17 15 13 13 Protection 1 | . . . 6 . 2 5 Ballistic Gun 18 | . 25 28 15 7 5 . Naked Turns . | . . . . . . . Heaviest Build 95 | 10 88 88 95 11 30 27 Greatest Support 40 | 40 40 20 19 18 18 18 Greatest Overweight (x) 4 | 3 4 4 4 . 2 1 Average Overweight (x) 1 | . 2 4 . . . . Largest Inventory Capacity 25 | 8 25 25 25 5 5 5 Average Capacity 16 | 7 22 25 6 5 5 5 Most Carried 25 | 8 25 25 24 5 5 5 Average Carried 12 | 4 16 25 6 3 3 3 Final Capacity 25 | 8 25 25 5 5 5 5 Final Carried 25 | 6 25 25 4 5 4 5 Class Distribution -------------------- 88% | Mutant 10% | Sprinter Dominant Class ---------------- Mutant | -10/Materials Mutant | -10/Subcaves Sprinter | -8/Materials Sprinter | -7/Factory Mutant | -7/Waste Mutant | -7/Factory Resources | -11 -10 -10 -8 -7 -7 -7 ----------- Run | Yrd Mat Sub Mat Fac Was Fac Matter Collected 910 | 248 216 . 446 . . . Remotely . | . . . . . . . Salvage Created 997 | . 460 . 506 . . 31 Parts 64 | . 26 . 33 . . 5 Haulers Intercepted . | . . . . . . . Recyclers Shooed 4 | . 1 . 3 . . . Parts Field Recycled . | . . . . . . . Retrieved Matter . | . . . . . . . Parts Self-Destructed 8 | . . 8 . . . . Prevented . | . . . . . . . Kills | -11 -10 -10 -8 -7 -7 -7 ------- Run | Yrd Mat Sub Mat Fac Was Fac Combat Hostiles Destroyed 25 | . 11 . 13 . . 1 Guns 24 | . 11 . 13 . . . AOE 1 | . . . . . . 1 Classes Destroyed 6 | . 4 . . . . 2 Worker 3 | . . . . . . 3 Builder 3 | . 1 . . . . 2 Recycler 1 | . 1 . . . . . Swarmer 7 | . 3 . 4 . . . Grunt 17 | . 8 . 9 . . . Hunter 1 | . . . . . . 1 Best Kill Streak 6 | . 3 . 4 . . 6 Combat Bots Only 4 | . 3 . 4 . . 1 Max Kills in Single Turn 2 | . 1 . 1 . . 2 Gunslinging . | . . . . . . . Exploded 1 | . . . . . . 1 Melee . | . . . . . . . Uniques/NPCs Destroyed . | . . . . . . . Combat | -11 -10 -10 -8 -7 -7 -7 -------- Run | Yrd Mat Sub Mat Fac Was Fac Hostile Shots Fired 331 | . 98 6 95 . 6 126 Missed 113 | . 26 2 24 . . 61 Damage Taken 3340 | . 858 57 1022 . 272 1131 Core 1135 | . 126 30 279 . 115 585 Absorbed by Shields . | . . . . . . . Core Remaining (%) 62 | 100 . 37 49 . . . Volleys Fired 152 | . 85 . 62 . . 5 Largest 2 | . 2 . 2 . . 1 Hottest 90 | . 40 . 90 . . 33 Shots Fired 222 | . 116 . 101 . . 5 Gun 217 | . 116 . 101 . . . Cannon . | . . . . . . . Launcher 5 | . . . . . . 5 Special . | . . . . . . . Kinetic 203 | . 116 . 87 . . . Thermal 14 | . . . 14 . . . Explosive 5 | . . . . . . 5 Electromagnetic . | . . . . . . . Robot Hit Streak 15 | . 10 . 15 . . 10 Robot Miss Streak 4 | . 4 . 2 . . . Penetration Max . | . . . . . . . Secondary Targets . | . . . . . . . Shots Hit Robots 164 | . 78 . 81 . . 5 Core Hits 72 | . 29 . 34 . . 9 Critical Kills 1 | . 1 . . . . . Critical Parts Destroyed 2 | . 2 . . . . . Critical Strikes 4 | . 3 . 1 . . . Burn 1 | . . . 1 . . . Destroy 3 | . 3 . . . . . Melee Attacks . | . . . . . . . Impact . | . . . . . . . Slashing . | . . . . . . . Piercing . | . . . . . . . Sneak Attacks . | . . . . . . . Combat Hostiles . | . . . . . . . Follow-up Attacks . | . . . . . . . Damage Inflicted 2267 | . 648 . 1098 . . 521 Guns 1736 | . 638 . 1098 . . . Cannons . | . . . . . . . Explosions 512 | . . . . . . 512 Melee . | . . . . . . . Ramming 19 | . 10 . . . . 9 Kinetic 1536 | . 638 . 898 . . . Thermal 200 | . . . 200 . . . Explosive 512 | . . . . . . 512 Electromagnetic . | . . . . . . . Impact . | . . . . . . . Slashing . | . . . . . . . Piercing . | . . . . . . . Highest Corruption 18 | . 2 2 . . 13 18 Average Corruption 5 | . 2 2 . . 7 14 Corruption Purged . | . . . . . . . Corruption Blocked . | . . . . . . . Effects 77 | . 31 3 . . 7 36 Message Errors 20 | . 6 1 . . 2 11 Matter Fused 15 | . 2 2 . . 2 9 Heat Flow Errors 8 | . 5 . . . 1 2 Energy Discharges 9 | . 6 . . . . 3 Data Loss (minor) 10 | . 6 . . . 1 3 Data Loss (major) 6 | . 3 . . . . 3 Misfires 2 | . 2 . . . . . Alerts 2 | . 1 . . . . 1 Misdirections 5 | . . . . . 1 4 Overload Shots . | . . . . . . . Overflow Damage 9 | . . . . . . 9 Projectiles . | . . . . . . . Explosions 9 | . . . . . . 9 Melee . | . . . . . . . Knockbacks . | . . . . . . . Impact . | . . . . . . . Kinetic . | . . . . . . . Secondary . | . . . . . . . Self-Inflicted Damage 197 | . . . . . . 197 Shots 5 | . . . . . . 5 Rammed 5 | . . . . . . 5 Targets Rammed 7 | . 2 . . . . 5 Kicked 1 | . 1 . . . . . Crushed 1 | . 1 . . . . . Highest Temperature 403 | . 279 . 403 . 112 152 Average Temperature 81 | . 53 . 117 . 65 78 Received Heat Transfer 1089 | . 393 27 558 . . 111 Effects 1 | . . . 1 . . . Energy Bleed 1 | . . . 1 . . . Siege Activations . | . . . . . . . Robots Corrupted . | . . . . . . . Combat Hostiles . | . . . . . . . Parts Fried . | . . . . . . . Impact Corruptions . | . . . . . . . Robots Melted . | . . . . . . . Combat Hostiles . | . . . . . . . Parts Melted . | . . . . . . . Heat Transferred 555 | . . . 555 . . . Parts Sabotaged . | . . . . . . . Parts Stolen . | . . . . . . . Parts Stripped . | . . . . . . . Power Chain Reactions . | . . . . . . . Alert | -11 -10 -10 -8 -7 -7 -7 ------- Run | Yrd Mat Sub Mat Fac Was Fac Peak Influence 321 | . 160 . 321 54 18 207 Initial 54 | . . . . 54 18 3 Average 53 | . 33 . 128 54 8 85 Maximum Alert Level 1 | . . . 1 . . 1 Low Security (%) 91 | 100 100 . 80 100 100 71 Level 1 8 | . . . 19 . . 28 Level 2 . | . . . . . . . Level 3 . | . . . . . . . Level 4 . | . . . . . . . Level 5 . | . . . . . . . High Security . | . . . . . . . Max Security . | . . . . . . . Squads Dispatched 15 | . 3 . 6 . . 6 Investigation 3 | . 2 . . . . 1 Extermination 1 | . . . . . . 1 Reinforcement 8 | . 1 . 3 . . 4 Assault . | . . . . . . . Garrison 3 | . . . 3 . . . Intercept . | . . . . . . . Searches Triggered . | . . . . . . . Construction Impeded . | . . . . . . . Haulers Reinforced . | . . . . . . . Active Scanning Responses . | . . . . . . . Cargo Convoy Interrupts . | . . . . . . . Stealth | -11 -10 -10 -8 -7 -7 -7 --------- Run | Yrd Mat Sub Mat Fac Was Fac Distress Signals 3 | . 2 . . . . 1 Communications Jammed . | . . . . . . . Distress Signals . | . . . . . . . Times Spotted 80 | . 24 1 23 . 8 24 Peak Tracking Total 9 | . 4 1 5 . 6 9 Tactical Retreats 8 | . 2 . 2 . 1 3 Traps | -11 -10 -10 -8 -7 -7 -7 ------- Run | Yrd Mat Sub Mat Fac Was Fac Traps Triggered 5 | . 3 . . 1 . 1 Indirectly . | . . . . . . . Trap Hack Attempts . | . . . . . . . Triggered . | . . . . . . . Disarmed . | . . . . . . . Reprogrammed . | . . . . . . . Reused . | . . . . . . . Traps Extracted . | . . . . . . . Installed . | . . . . . . . Triggered . | . . . . . . . Machines | -11 -10 -10 -8 -7 -7 -7 ---------- Run | Yrd Mat Sub Mat Fac Was Fac Machines Disabled 1 | . . . . . . 1 Max in Single Turn 1 | . . . . . . 1 Machines Repaired . | . . . . . . . Machines Dismantled . | . . . . . . . Machines Sabotaged . | . . . . . . . Overloaded Fab Kills . | . . . . . . . Hacking | -11 -10 -10 -8 -7 -7 -7 --------- Run | Yrd Mat Sub Mat Fac Was Fac Machines Accessed 4 | . 2 . 1 . . 1 Terminals 3 | . 2 . 1 . . . Fabricators . | . . . . . . . Repair Stations . | . . . . . . . Recycling Units . | . . . . . . . Scanalyzers 1 | . . . . . . 1 Garrison Access . | . . . . . . . Total Hacks 7 | . 3 . 2 . . 2 Successful 1 | . 1 . . . . . Failed 6 | . 2 . 2 . . 2 Catastrophic 1 | . 1 . . . . . Database Lockouts . | . . . . . . . Manual . | . . . . . . . Terminals 5 | . 3 . 2 . . . Fabricators . | . . . . . . . Repair Stations . | . . . . . . . Recycling Units . | . . . . . . . Scanalyzers 2 | . . . . . . 2 Garrison Access . | . . . . . . . Terminal Hacks 1 | . 1 . . . . . Locate Traps 1 | . 1 . . . . . Fabricator Hacks . | . . . . . . . Repair Station Hacks . | . . . . . . . Recycling Unit Hacks . | . . . . . . . Scanalyzer . | . . . . . . . Garrison Access Hacks . | . . . . . . . Unauthorized Hacks . | . . . . . . . Terminals . | . . . . . . . Fabricators . | . . . . . . . Repair Stations . | . . . . . . . Recycling Units . | . . . . . . . Scanalyzers . | . . . . . . . Garrison Access . | . . . . . . . Data Cores Recovered . | . . . . . . . Used . | . . . . . . . Hacking Detections 4 | . 2 . 1 . . 1 Full Trace Events 2 | . 1 . . . . 1 Feedback Events . | . . . . . . . Feedback Blocked . | . . . . . . . Robot Schematics Acquired . | . . . . . . . Robots Built . | . . . . . . . Authchips . | . . . . . . . Time . | . . . . . . . Total Robot Build Rating . | . . . . . . . Part Schematics Acquired . | . . . . . . . Parts Built . | . . . . . . . Authchips . | . . . . . . . Time . | . . . . . . . Total Part Build Rating . | . . . . . . . Parts Repaired . | . . . . . . . Time . | . . . . . . . Parts Recycled . | . . . . . . . Recycled Matter . | . . . . . . . Retrieved Matter . | . . . . . . . Retrieved Components . | . . . . . . . Parts Scanalyzed . | . . . . . . . Part Schematics Acquired . | . . . . . . . Parts Damaged . | . . . . . . . Bothacking | -11 -10 -10 -8 -7 -7 -7 ------------ Run | Yrd Mat Sub Mat Fac Was Fac Used RIF Installer . | . . . . . . . Robots Hacked . | . . . . . . . Non-combat . | . . . . . . . Combat . | . . . . . . . Robot Hacks Applied . | . . . . . . . Relay Couplers Released . | . . . . . . . Fabnet Peak Effective % . | . . . . . . . Robots Rewired . | . . . . . . . Allies Hacked . | . . . . . . . Hacks Repelled . | . . . . . . . Allies | -11 -10 -10 -8 -7 -7 -7 -------- Run | Yrd Mat Sub Mat Fac Was Fac Total Allies 1 | . . . . . 1 . Largest Group 1 | . . . . . 1 . Highest-Rated Group 31 | . . . . . 31 . Highest-Rated Ally 31 | . . . . . 31 . Total Orders . | . . . . . . . Ally Attacks 2 | . . . . . 2 . Total Damage 44 | . . . . . 44 . Kills . | . . . . . . . Allies Corrupted . | . . . . . . . Allies Melted . | . . . . . . . Intel | -11 -10 -10 -8 -7 -7 -7 ------- Run | Yrd Mat Sub Mat Fac Was Fac Robot Analysis Total . | . . . . . . . Derelict Logs Recovered . | . . . . . . . Drone Launches . | . . . . . . . Drone Recoveries . | . . . . . . . Exploration | -11 -10 -10 -8 -7 -7 -7 ------------- Run | Yrd Mat Sub Mat Fac Was Fac Turns Passed 4591 | 65 2602 276 438 130 164 916 Spaces Moved 2236 | 39 704 70 332 121 267 703 Core 309 | 24 . . . . 64 221 Treads 268 | 15 253 . . . . . Legs 652 | . 451 70 . . . 131 Wheels . | . . . . . . . Hover 351 | . . . . . . 351 Flight 656 | . . . 332 121 203 . Fastest Speed 31 | 50 160 400 31 31 31 50 Average Speed 154 | 123 328 400 37 31 54 71 Slowest Speed 400 | 200 400 400 319 31 186 130 Overloaded Moves . | . . . . . . . Propulsion Burnouts . | . . . . . . . Robots Hopped 8 | . . . 7 . 1 . Cave-ins Triggered . | . . . . . . . Exploration Rate (%) 37 | 3 95 11 29 4 95 22 Regions Visited 6 Branch Regions 1 Pre-discovered Areas . | . . . . . . . Known Exits Taken 3 | . 1 1 1 . . . Unknown Exits Taken 1 | 1 . . . . . . Scrap Searched . | . . . . . . . Spaces Dug . | . . . . . . . Terrain Destroyed 32 | . . . . . . 32 Melee . | . . . . . . . Projectile . | . . . . . . . AOE 32 | . . . . . . 32 Terrain Rammed . | . . . . . . . Walls Destroyed . | . . . . . . . Machines Disabled . | . . . . . . . Actions | -11 -10 -10 -8 -7 -7 -7 --------- Run | Yrd Mat Sub Mat Fac Was Fac Total 3176 | 56 897 69 544 213 287 1110 Wait 643 | . 61 . 117 85 11 369 Move 2215 | 38 703 69 317 121 264 703 Hop 8 | . . . 7 . 1 . Pick Up 67 | 12 31 . 5 4 3 12 Fast Attach . | . . . . . . . Attach 44 | 6 8 . 10 3 4 13 Detach 3 | . . . . . 1 2 Swap 9 | . 2 . 7 . . . Drop 28 | . 5 . 19 . 3 1 Fire 152 | . 85 . 62 . . 5 Melee . | . . . . . . . Ram 5 | . . . . . . 5 Kick 1 | . 1 . . . . . Crush 1 | . 1 . . . . . Escape Stasis . | . . . . . . . Rewire . | . . . . . . . Trap . | . . . . . . . Miscellaneous . | . . . . . . . Route ------- -11/Scrapyard -10/Materials (discovered 5 exits: [*Mat x2] / *Min x2 / *Sub) -10/Subcaves -8/Materials -7/Factory -7/Waste -7/Factory (discovered 1 exit: [*Fac]) History --------- Turn | Location | Event 2 | -11/Scrapyard | Met Revision 17 13 | -11/Scrapyard | Discovered new exit (range 15) 66 | -11/Scrapyard | Entered Materials 324 | -10/Materials | Build established: Mutant 426 | -10/Materials | Discovered new exit (range 11) 712 | -10/Materials | Discovered new exit (range 16) 801 | -10/Materials | Lost 3 parts (1p2n) 1343 | -10/Materials | Discovered new exit (range 7) 1494 | -10/Materials | Core integrity fell below 50% 2012 | -10/Materials | Discovered new exit (range 8) 2428 | -10/Materials | Identified exit to Mines 2624 | -10/Materials | Discovered new exit (range 8) 2664 | -10/Materials | Identified exit to Subcaves 2668 | -10/Materials | Entered Subcaves 2912 | -10/Subcaves | Discovered new exit (range 9) 2940 | -10/Subcaves | Identified exit to Materials 2944 | -10/Subcaves | Entered Materials 2944 | -8/Materials | Evolved 4 slots: Propulsion x2, Utility x2 3087 | -8/Materials | Garrison activated, responded to threat 3306 | -8/Materials | Build established: Sprinter 3369 | -8/Materials | Core integrity fell below 50% 3377 | -8/Materials | Discovered new exit (range 9) 3380 | -8/Materials | Identified exit to Factory 3382 | -8/Materials | Entered Factory 3382 | -7/Factory | Evolved 2 slots: Propulsion x1, Weapon x1 3389 | -7/Factory | Lost 4 parts (1p2n1w) 3512 | -7/Factory | Sucked down chute 3512 | -7/Factory | Entered Waste 3513 | -7/Waste | Met a frightened Derelict 3522 | -7/Waste | Spotted C-40 Crusher 3527 | -7/Waste | EMP discharged 3552 | -7/Waste | Spotted C-40 Crusher 3558 | -7/Waste | Crushed by Compactor (1 part destroyed) 3561 | -7/Waste | Spotted C-40 Crusher 3572 | -7/Waste | Crushed by Compactor (0 parts destroyed, 1 dropped) 3577 | -7/Waste | Spotted C-40 Crusher 3588 | -7/Waste | Spotted C-40 Crusher 3588 | -7/Waste | Spotted C-40 Crusher 3627 | -7/Waste | EMP discharged 3627 | -7/Waste | System corruption reached 10% 3632 | -7/Waste | Crushed by Compactor (1 part destroyed, 2 dropped) 3644 | -7/Waste | Crushed by Compactor (1 part destroyed, 2 dropped) 3672 | -7/Waste | Discovered new exit (range 10) 3675 | -7/Waste | Lost 3 parts (1n1u1w) 3676 | -7/Waste | Entered Factory 3858 | -7/Factory | Build established: Mutant 4552 | -7/Factory | Discovered new exit (range 7) 4567 | -7/Factory | Core integrity fell below 50% 4591 | -7/Factory | Core integrity fell below 20% 4592 | -7/Factory | Destroyed by H-61 Shepherd with Heavy Assault Cannon Last Messages --------------- 04559_ Imp. Light Armor Plating destroyed. 04563_ ALERT: Suspicious intruders detected, dispatching Cutter reinforcements to area. 04563_ Slammed into A-02 Transporter. 04564_ Knocked back. 04564_ Carbon-fiber Leg destroyed. 04566_ Penetrated by Slug. 04566_ Targeting Computer destroyed. 04566_ Critical hit (Blast). 04566_ Knocked back. 04573_ System corrupted: Matter fused (-9). 04578_ Acquired Wheel. 04587_ Slammed into H-61 Shepherd. 04588_ H-61 Shepherd calls for reinforcements. 04588_ ALERT: Hostile activity reported, dispatching reinforcements to area. 04588_ Knocked back. 04588_ Slammed into H-61 Shepherd. 04590_ Knocked back. 04591_ Slammed into G-47 Trooper. Map ----- +----------------------------------------------------+ | ???????# [[ # / #???????#####+###### | | ???????###### [ # # #???????# # | | ???????????#" ###### #???????#!! # | | ???????????#T ????! #??????#!! [ # | | ############" #??? #??????#!! # | | ### ! ?? * +??????# """" # | | T## ###? ?#??????# """" # | | ## ! #??????????????# """" # | | #?# ######+###??????????????# """" # | | #?# ????????????????????????# # | | #?# #???????????????????????########## | | ] #?# #????????????????????????????????# | | ##### #?# #????????????????????????????????# | | ??### ### #????????????????????????????????### | | ??# # #??????????????????????????????????? | | ??# # ###########????????????????????????? | | ??# #????????????????????????? | | ??# #????????????????????????? | | ??# < #################????????? | | ??# % # #????????? | | ??# # """" """ #????????? | | ??# ####### #p"""" """ #????????? | | ??# #?????# % #p"""" """ #????????? | | ??### #######?????# #%"""" #????????? | | ????# ????????????# #%"""" #????????? | | ????# ????????????# #@"""" #????????? | | ????# ????????????# g/H gg #????????? | | ????# ????????????# g########+########????????? | | ??????????????????# #?????? ???????????????? | | ??????????????????# #?????? ???????????????? | | ????????????????? ????? ??????????????? | | ????????????????# ???? ??????????????? | | ??????????????? ??? ?????????????? | | ?????????????? ??? ?????????????? | | ???????????? +? ????????????? | | ???????????? ?? ????????????? | | ???????????? ? ???????????? | | ?????????????#### = ? ???????????? | | ????????????????# ?# ??????????? | | ?????????????????#?##+###?# ??????????? | | ????????????????????????????#########????????????? | | ?????????????????????????????????????????????????? | | ?????????????????????????????????????????????????? | | ?????????????????????????????????????????????????? | | ?????????????????????????????????????????????????? | | ?????????????????????????????????????????????????? | | ?????????????????????????????????????????????????? | | ?????????????????????????????????????????????????? | | ?????????????????????????????????????????????????? | | ?????????????????????????????????????????????????? | +----------------------------------------------------+ Best States ------------- Heat Dissipation 34 Energy Generation 18 Energy Capacity 250 Matter Stores 300 Matter Capacity 300 Sight Range 16 Terrain Scan Density 10 Jamming Range 12 Armor Coverage 600 Evasion (%) 63 Targeting Accuracy 15 Recoil Reduction 2 Item Schematics ----------------- None Robot Schematics ------------------ None Fabricated ------------ Nothing Alien Tech Used ----------------- None Achievements -------------- None Challenges ------------ None Game ------ Seed WeldingAlloyBay Manual? 0 Play Time 00:50:39 Cumulative 28.3 hours Start 2024.05.12 @ 13:40:01 End 2024.06.19 @ 09:28:06 Sessions 7 Manual Loads 0 Difficulty Rogue Special Mode None Game No. 45 Rogue 45 Adventurer 0 Explorer 0 Win Type - Total 0 Types 0/0/0/0/0/0/0/0/0 Lore% 23 Gallery% 23 Achievement% 21 Wizard Run 0 Options --------- Layout 2 ASCII 1 Keyboard 0 Movement Vi Keybinds 0 Fullscreen 1 Font 16/SmallcapsGlow Map View 50x44 Zoom Use 0% Tactical HUD 1 Map Filters NONE Filters NONE Steam SD RUN: f9403abb-a078-443e-905f-ac6991b0822a